bitfinex-derivatives/quotes_SOLF0:USTF0_20220104
["timestamp","ask_amount","ask_price","bid_price","bid_amount"]
[1641291172095,4.20943889,167.29,167.26,4.20943889]
[1641291172597,27.66479,167.32,167.25,1.14255781]
[1641291172798,27.66479,167.32,167.25,6.51455781]
[1641291173696,27.66479,167.32,167.26,4.20955581]
[1641291173898,4.20955581,167.29,167.26,5.35211349]
[1641291174701,40.29379298,167.32,167.25,5.372]
[1641291175200,12.62900298,167.32,167.25,5.372]
[1641291175400,4.20938289,167.29,167.27,4.20938289]
[1641291175600,4.20938289,167.29,167.28,33.8251]
[1641291176000,12.62900298,167.33,167.28,33.8251]
[1641291177102,4.21808828,167.3,167.29,1.14494908]
[1641291177302,4.21808828,167.3,167.29,5.36303736]
[1641291177903,27.66479,167.34,167.28,33.8251]
[1641291178103,15.72126389,167.33,167.28,33.8251]
[1641291178904,27.66479,167.34,167.29,5.36310394]
[1641291179505,27.66479,167.34,167.28,33.8251]
[1641291179707,15.7278085,167.33,167.28,33.8251]
[1641291181108,3.07325476,167.33,167.3,4.21804213]
[1641291181308,3.07325476,167.33,167.3,9.40304213]
[1641291181709,40.31934374,167.34,167.3,5.185]
[1641291181909,43.31934374,167.34,167.3,5.185]
[1641291182109,40.31934374,167.34,167.3,5.185]
[1641291182509,3.07304778,167.33,167.3,9.4030121]
[1641291183110,40.31934374,167.34,167.3,5.185]
[1641291183510,12.65455374,167.34,167.3,5.185]
[1641291183710,12.65455374,167.34,167.31,2.99989999]
[1641291183912,33.76821469,167.38,167.32,2.99989999]
[1641291184112,3.0726279,167.33,167.32,2.99989999]
[1641291184316,33.76821469,167.37,167.32,2.99989999]
[1641291184512,33.76821469,167.37,167.31,35.13099999]
[1641291184713,33.76821469,167.37,167.32,27.66479]
[1641291185114,12.65034752,167.37,167.33,4.21678251]
[1641291186914,12.65034752,167.37,167.32,27.66479]
[1641291187116,12.65034752,167.38,167.34,4.21654635]
[1641291187616,12.65034752,167.38,167.34,4.123]
[1641291188518,12.65034752,167.38,167.34,8.33952175]
[1641291189418,12.65034752,167.38,167.34,4.123]
[1641291189623,12.65034752,167.44,167.34,4.123]
[1641291189822,12.65034752,167.44,167.35,32.984]
[1641291190024,15.65034752,167.44,167.35,32.984]
[1641291190423,19.31744752,167.45,167.35,26.23835774]
[1641291191124,25.50144752,167.45,167.35,26.23835774]
[1641291191824,9.8511,167.45,167.35,26.23835774]
[1641291194626,31.84819336,167.43,167.35,26.23835774]
[1641291197130,31.84819336,167.43,167.35,29.23825773]
[1641291197731,31.84819336,167.43,167.35,26.23835774]
[1641291197930,12.65034752,167.42,167.38,4.18376967]
[1641291199631,12.65034752,167.41,167.37,4.18376967]
[1641291202836,10.99887588,167.42,167.35,30.42212741]
[1641291202837,12.65034752,167.39,167.35,30.42212741]
[1641291206143,12.65034752,167.39,167.36,4.18376967]
[1641291206941,12.65034752,167.41,167.37,4.18376967]
[1641291210454,12.65034752,167.42,167.38,4.18376967]
[1641291215454,12.65034752,167.41,167.37,4.18376967]
[1641291217556,4.19986259,167.4,167.35,33.88925773]
[1641291218158,4.19986259,167.4,167.35,29.23825773]
[1641291218457,27.66479,167.43,167.37,4.18376967]
[1641291218656,12.65034752,167.41,167.37,4.18376967]
[1641291219256,12.65034752,167.42,167.38,4.18376967]
[1641291220257,12.65034752,167.42,167.37,4.18376967]
[1641291220258,12.65034752,167.41,167.37,4.18376967]
[1641291220958,12.65034752,167.41,167.35,63.26304773]
[1641291220959,12.65034752,167.42,167.38,4.18376967]
[1641291222059,40.31513752,167.43,167.4,4.18376967]
[1641291222860,27.66479,167.43,167.41,4.18376967]
[1641291224060,12.65034752,167.45,167.41,4.18376967]
[1641291224260,12.65034752,167.45,167.41,12.24566966]
[1641291224959,12.65034752,167.45,167.41,9.24576967]
[1641291225359,12.65034752,167.45,167.41,12.24566966]
[1641291225562,12.65034752,167.45,167.41,9.24576967]
[1641291225761,3.06880303,167.45,167.44,4.18376967]
[1641291226764,12.65034752,167.49,167.43,1.14618315]
[1641291227363,12.65034752,167.49,167.44,27.66479]
[1641291227863,15.71915055,167.5,167.46,4.21451959]
[1641291228764,18.71915055,167.5,167.46,4.21451959]
[1641291228963,3.0,167.49,167.46,4.21451959]
[1641291229164,23.19615055,167.5,167.46,4.21451959]
[1641291229366,20.19615055,167.5,167.46,4.21451959]
[1641291230064,12.65034752,167.47,167.44,4.21451959]
[1641291232069,12.65034752,167.48,167.44,4.21451959]
[1641291234573,12.65034752,167.48,167.44,5.36070274]
[1641291236479,4.21445129,167.45,167.44,1.14618315]
[1641291240982,4.38,167.48,167.43,27.66479]
[1641291242483,4.21445129,167.5,167.43,27.66479]
[1641291243884,31.87924129,167.51,167.43,27.66479]
[1641291247487,27.66479,167.51,167.43,27.66479]
[1641291247688,27.66479,167.51,167.41,34.7911]
[1641291248089,30.66479,167.51,167.41,34.7911]
[1641291248286,30.66479,167.51,167.44,1.14631994]
[1641291248287,4.21445129,167.46,167.44,1.14631994]
[1641291248787,4.21445129,167.46,167.42,19.62697483]
[1641291250990,15.71832977,167.5,167.42,1.14631994]
[1641291251794,4.21269251,167.46,167.42,1.14631994]
[1641291252695,3.06798225,167.5,167.45,4.21259173]
[1641291252895,15.70575744,167.5,167.45,4.21259173]
[1641291253394,4.21256965,167.46,167.42,19.62696809]
[1641291253895,15.70575744,167.5,167.45,4.21258578]
[1641291254599,15.70575744,167.5,167.42,19.62696809]
[1641291254800,4.21257545,167.46,167.42,19.62696809]
[1641291255296,15.70575744,167.5,167.42,19.62696809]
[1641291256200,15.70575744,167.5,167.46,4.21256725]
[1641291257205,15.70575744,167.5,167.45,4.21256725]
[1641291257405,15.70575744,167.5,167.42,19.62696809]
[1641291259007,15.70575744,167.5,167.42,13.76292315]
[1641291259206,15.70575744,167.5,167.45,4.21266719]
[1641291259907,15.70575744,167.5,167.42,13.76292315]
[1641291260107,15.70575744,167.5,167.42,19.62699549]
[1641291260809,15.70575744,167.5,167.45,4.2128169]
[1641291261508,15.70575744,167.5,167.42,19.62699549]
[1641291262411,15.70575744,167.5,167.45,4.21286162]
[1641291263011,15.70575744,167.5,167.44,5.041]
[1641291263212,15.70575744,167.5,167.45,1.14631994]
[1641291263813,15.70575744,167.5,167.45,4.21287111]
[1641291264713,12.63777519,167.49,167.45,1.14593705]
[1641291265515,14.05298702,167.5,167.45,4.21226857]
[1641291266314,3.06798225,167.5,167.42,1.14593355]
[1641291266515,15.70415262,167.5,167.46,4.21205679]
[1641291267116,15.70415262,167.5,167.45,4.21216363]
[1641291267117,12.63617037,167.49,167.45,4.21216363]
[1641291268017,12.63617037,167.49,167.42,1.14593355]
[1641291268918,12.63617037,167.49,167.45,4.21215374]
[1641291269818,12.63617037,167.49,167.42,1.14593355]
[1641291270021,3.0,167.48,167.42,1.14593355]
[1641291270319,5.085,167.48,167.42,1.14593355]
[1641291270519,27.66479,167.44,167.42,1.14593355]
[1641291271218,27.66479,167.44,167.42,5.36044688]
[1641291271419,27.66479,167.44,167.42,4.21451333]
[1641291271818,27.66479,167.44,167.4,9.08]
[1641291272024,31.8674422,167.44,167.41,4.2026522]
[1641291272421,4.2026522,167.44,167.41,4.2026522]
[1641291272621,27.66479,167.47,167.41,1.14307384]
[1641291273422,4.20260493,167.45,167.41,4.20260493]
[1641291274022,3.05947152,167.48,167.41,1.14309246]
[1641291274727,27.66479,167.47,167.41,1.14309246]
[1641291275223,4.2025689,167.46,167.42,4.2025689]
[1641291275825,27.66479,167.47,167.41,1.14309123]
[1641291276826,27.66479,167.47,167.4,9.08]
[1641291277028,4.20258979,167.45,167.42,4.20258979]
[1641291277228,4.20258979,167.45,167.42,10.01758979]
[1641291277428,27.66479,167.47,167.42,5.815]
[1641291277728,4.202476,167.46,167.42,5.815]
[1641291278629,27.66479,167.47,167.43,4.20236194]
[1641291278829,27.66479,167.47,167.43,5.3454948]
[1641291279329,27.66479,167.47,167.43,4.20236194]
[1641291279531,27.66479,167.47,167.42,5.815]
[1641291279532,3.06757165,167.46,167.45,4.21396003]
[1641291280133,27.66479,167.47,167.43,32.6868]
[1641291280333,27.66479,167.47,167.43,33.83317354]
[1641291281435,3.06769625,167.46,167.45,4.21406386]
[1641291282041,27.66479,167.47,167.43,32.6868]
[1641291282242,27.66479,167.47,167.44,4.21404252]
[1641291283442,27.66479,167.47,167.44,1.14637041]
[1641291283642,3.06767944,167.46,167.44,1.14637041]
[1641291284242,27.66479,167.47,167.44,4.21400975]
[1641291284842,27.66479,167.47,167.43,32.6868]
[1641291285043,3.06763273,167.46,167.44,1.14637819]
[1641291286143,12.6420981,167.48,167.44,4.2140327]
[1641291287247,27.66479,167.49,167.44,4.2140327]
[1641291287447,27.66479,167.49,167.43,38.9878]
[1641291287647,30.73242562,167.49,167.44,1.14637771]
[1641291288449,30.73242562,167.49,167.44,4.21403162]
[1641291288649,15.70973047,167.48,167.44,4.21403162]
[1641291289251,27.66479,167.49,167.43,38.9878]
[1641291289548,27.66479,167.49,167.46,4.21354102]
[1641291290348,3.0670977,167.48,167.47,4.21356506]
[1641291291250,27.66479,167.49,167.44,1.14647218]
[1641291291850,3.06711705,167.48,167.47,4.21358119]
[1641291292452,27.66479,167.49,167.44,1.14647218]
[1641291292653,27.66479,167.49,167.46,4.21377194]
[1641291293653,3.0673756,167.48,167.43,36.9778]
[1641291294254,27.66479,167.49,167.44,4.20132461]
[1641291294454,27.66479,167.49,167.44,5.34435774]
[1641291294655,3.0,167.51,167.44,5.34435774]
[1641291294856,28.76597384,167.52,167.44,5.34435774]
[1641291295254,27.66479,167.49,167.44,5.34435774]
[1641291295455,4.20134125,167.48,167.43,36.9778]
[1641291296555,27.66479,167.49,167.43,36.9778]
[1641291296759,27.66479,167.49,167.44,5.34437004]
[1641291297263,4.20131751,167.47,167.43,32.6868]
[1641291297463,4.20131751,167.47,167.43,36.88811751]
[1641291297962,27.66479,167.49,167.43,32.6868]
[1641291298664,4.20131486,167.47,167.43,36.88811486]
[1641291299566,27.66479,167.49,167.43,32.6868]
[1641291300466,4.2013198,167.47,167.43,36.8881198]
[1641291301469,4.2013198,167.47,167.43,39.88801979]
[1641291301670,12.60397384,167.51,167.45,5.96231815]
[1641291301869,33.76821469,167.55,167.5,30.66468999]
[1641291301870,28.37218853,167.55,167.5,30.66468999]
[1641291302069,28.37218853,167.55,167.5,35.57568999]
[1641291302270,12.60289721,167.52,167.5,32.57579]
[1641291302470,4.81645691,167.52,167.5,32.57579]
[1641291302871,30.66479,167.6,167.5,32.57579]
[1641291303070,30.66479,167.6,167.51,34.7066]
[1641291303272,27.66479,167.6,167.51,34.7066]
[1641291303470,10.97745025,167.59,167.51,34.7066]
[1641291304272,10.97745025,167.59,167.52,2.99989999]
[1641291304672,10.97745025,167.59,167.53,2.99989999]
[1641291304872,27.66479,167.6,167.53,2.99989999]
[1641291305073,13.5192,167.67,167.53,2.99989999]
[1641291305074,3.0,167.65,167.53,2.99989999]
[1641291305472,59.41839299,167.68,167.53,2.99989999]
[1641291305673,53.45749647,167.68,167.54,8.95902042]
[1641291305871,53.45749647,167.68,167.54,14.33602042]
[1641291306073,43.0744266,167.66,167.55,30.66468999]
[1641291306277,43.0744266,167.66,167.55,27.66479]
[1641291306473,46.0744266,167.66,167.55,30.66468999]
[1641291306874,46.0744266,167.66,167.55,27.66479]
[1641291307074,30.66479,167.66,167.56,31.174]
[1641291307275,3.0,167.65,167.56,37.1288483]
[1641291307877,31.89979,167.66,167.56,31.174]
[1641291308179,27.66479,167.62,167.56,31.174]
[1641291308377,33.98079,167.62,167.56,31.174]
[1641291312886,10.88757629,167.61,167.56,31.174]
[1641291316989,10.88757629,167.61,167.55,8.74]
[1641291317488,10.88757629,167.61,167.55,39.3468]
[1641291318088,27.66479,167.62,167.55,39.3468]
[1641291324997,3.0,167.65,167.55,39.3468]
[1641291325799,3.0,167.64,167.55,39.3468]
[1641291326198,27.66479,167.61,167.55,39.3468]
[1641291326400,27.66479,167.64,167.55,39.3468]
[1641291327098,10.88743048,167.63,167.55,39.3468]
[1641291328500,27.66479,167.64,167.55,39.3468]
[1641291329702,10.88655271,167.63,167.55,39.3468]
[1641291330203,27.66479,167.64,167.55,39.3468]
[1641291332710,3.0,167.66,167.55,39.3468]
[1641291332908,12.63047891,167.63,167.55,51.97727891]
[1641291333408,12.63047891,167.63,167.55,54.9771789]
[1641291333608,12.63047891,167.63,167.55,51.97727891]
[1641291334406,12.63047891,167.63,167.56,27.66479]
[1641291334609,12.63047891,167.63,167.56,34.12479]
[1641291337012,12.63047891,167.63,167.56,46.75526891]
[1641291340014,27.66479,167.64,167.56,34.12479]
[1641291341714,27.66479,167.64,167.57,1.1766789]
[1641291341913,3.01952739,167.63,167.58,2.99989999]
[1641291342513,3.01952739,167.63,167.57,1.1766789]
[1641291342713,3.01952739,167.66,167.59,1.1766789]
[1641291343613,3.01952739,167.66,167.57,1.1766789]
[1641291344015,3.01952739,167.66,167.57,4.17657889]
[1641291344214,3.01952739,167.66,167.57,1.1766789]
[1641291345018,3.01952739,167.66,167.59,27.66479]
[1641291345216,3.01952739,167.66,167.6,32.7418]
[1641291345418,3.01952739,167.66,167.6,37.1358]
[1641291346019,3.01952739,167.66,167.61,1.1766789]
[1641291346521,27.66479,167.67,167.61,1.1766789]
[1641291348523,3.02824263,167.66,167.61,19.76166011]
[1641291350223,3.02824263,167.66,167.61,13.80715781]
[1641291350422,3.02824263,167.66,167.61,1.1766789]
[1641291351325,10.78526014,167.71,167.63,5.95574879]
[1641291351526,1.74526014,167.71,167.66,2.99989999]
[1641291351728,1.74526014,167.71,167.68,2.99989999]
[1641291351925,1.74526014,167.71,167.69,2.99989999]
[1641291352126,1.74526014,167.71,167.67,5.95433029]
[1641291352327,50.45749647,167.76,167.67,5.95433029]
[1641291352530,50.45749647,167.76,167.68,33.1267]
[1641291352727,3.08,167.78,167.68,33.1267]
[1641291353128,27.66479,167.76,167.68,33.1267]
[1641291353328,3.0,167.75,167.68,33.1267]
[1641291353528,27.66479,167.76,167.68,33.1267]
[1641291353928,30.66479,167.76,167.68,33.1267]
[1641291354129,10.53460091,167.75,167.68,33.1267]
[1641291355029,30.66479,167.76,167.68,33.1267]
[1641291355228,27.66479,167.76,167.68,37.4067]
[1641291355428,30.66479,167.76,167.68,37.4067]
[1641291356230,27.66479,167.76,167.68,37.4067]
[1641291356429,10.83523902,167.75,167.68,37.4067]
[1641291356630,13.83523902,167.75,167.68,37.4067]
[1641291357230,10.83523902,167.75,167.68,37.4067]
[1641291357932,27.66479,167.76,167.69,7.23569864]
[1641291358336,30.66479,167.76,167.69,7.23569864]
[1641291358530,27.66479,167.76,167.69,7.23569864]
[1641291359933,30.66479,167.76,167.69,7.23569864]
[1641291361233,27.66479,167.73,167.69,7.23569864]
[1641291362737,4.20715061,167.75,167.69,7.23569864]
[1641291363337,31.87194061,167.75,167.69,7.23569864]
[1641291363539,4.20715061,167.75,167.69,7.23569864]
[1641291365340,27.66479,167.73,167.68,41.56467571]
[1641291365841,27.66479,167.77,167.68,41.56467571]
[1641291366242,30.66479,167.77,167.68,47.51882873]
[1641291366443,27.66479,167.77,167.68,47.51882873]
[1641291366843,27.66479,167.77,167.69,4.15797571]
[1641291367545,20.93375682,167.77,167.69,4.15797571]
[1641291370149,20.93375682,167.77,167.68,43.36085302]
[1641291370350,25.14090743,167.77,167.69,18.18779555]
[1641291371049,25.14090743,167.77,167.69,7.07423217]
[1641291371249,4.20715061,167.76,167.69,7.07423217]
[1641291373256,20.93375682,167.77,167.71,33.65549801]
[1641291374858,20.93375682,167.77,167.72,33.65549801]
[1641291376559,20.93375682,167.77,167.71,33.65549801]
[1641291377359,20.93375682,167.77,167.7,7.07423217]
[1641291377360,0.08,167.78,167.72,33.65549801]
[1641291377560,0.08,167.78,167.73,58.49919]
[1641291378160,0.08,167.78,167.73,30.8344]
[1641291378360,0.08,167.78,167.73,64.48989801]
[1641291378961,0.08,167.78,167.74,7.07423217]
[1641291381062,0.08,167.78,167.72,7.07423217]
[1641291382061,0.08,167.78,167.75,12.61949555]
[1641291382764,0.08,167.78,167.76,12.61949555]
[1641291383866,0.08,167.78,167.72,19.69372772]
[1641291385666,27.74479,167.78,167.72,19.69372772]
[1641291386068,3.0,167.73,167.72,9.51122772]
[1641291386265,3.0,167.73,167.68,33.65549801]
[1641291386466,3.0,167.71,167.68,33.65549801]
[1641291386867,3.0,167.73,167.68,33.65549801]
[1641291387066,4.20715061,167.72,167.62,32.403]
[1641291387268,7.20715061,167.72,167.62,32.403]
[1641291387668,7.20715061,167.72,167.62,60.06779]
[1641291387669,27.66479,167.71,167.62,60.06779]
[1641291387869,4.20715061,167.73,167.62,60.06779]
[1641291388067,4.20715061,167.73,167.62,64.60579]
[1641291388269,4.20715061,167.73,167.63,5.95574879]
[1641291388671,27.66479,167.74,167.65,33.65549801]
[1641291388869,27.66479,167.74,167.66,31.2767]
[1641291389071,3.0,167.73,167.66,31.2767]
[1641291389370,30.66479,167.74,167.66,31.2767]
[1641291389571,55.32958,167.74,167.66,31.2767]
[1641291391473,55.32958,167.74,167.67,1.59350586]
[1641291395280,4.20715061,167.72,167.67,1.59350586]
[1641291397381,4.20715061,167.71,167.65,1.59350586]
[1641291397983,31.87194061,167.71,167.65,1.59350586]
[1641291398185,31.87194061,167.71,167.66,1.59350586]
[1641291398783,31.87194061,167.71,167.67,1.59350586]
[1641291399284,31.87194061,167.71,167.68,1.59350586]
[1641291400086,31.87194061,167.71,167.69,1.59350586]
[1641291400584,34.87194061,167.71,167.69,1.59350586]
[1641291400786,31.87194061,167.71,167.69,1.59350586]
[1641291401286,31.87194061,167.71,167.7,1.59350586]
[1641291401889,27.66479,167.71,167.65,4.17468335]
[1641291402688,27.66479,167.71,167.67,4.17468335]
[1641291402890,30.66479,167.71,167.67,4.17468335]
[1641291403088,27.66479,167.71,167.67,4.17468335]
[1641291403789,27.66479,167.71,167.66,4.17468335]
[1641291404088,27.66479,167.71,167.64,1.41237761]
[1641291404089,27.66479,167.71,167.67,4.17468335]
[1641291406690,27.66479,167.74,167.67,4.17468335]
[1641291407491,27.66479,167.74,167.66,8.10237761]
[1641291407492,27.66479,167.74,167.69,4.17468335]
[1641291407893,30.66479,167.74,167.69,4.17468335]
[1641291408095,27.66479,167.74,167.69,4.17468335]
[1641291408294,27.66479,167.74,167.68,4.17468335]
[1641291408696,30.66479,167.74,167.68,4.17468335]
[1641291408995,27.66479,167.74,167.68,4.17468335]
[1641291409497,30.66479,167.74,167.68,4.17468335]
[1641291410399,30.66479,167.74,167.67,1.41237761]
[1641291410599,30.66479,167.74,167.66,4.17468335]
[1641291410600,30.66479,167.74,167.66,5.58706096]
[1641291411399,30.66479,167.74,167.65,38.46248335]
[1641291412301,27.66479,167.74,167.65,38.46248335]
[1641291412500,30.66479,167.74,167.65,38.46248335]
[1641291412701,27.66479,167.74,167.65,38.46248335]
[1641291412903,30.66479,167.74,167.65,38.46248335]
[1641291413104,27.66479,167.74,167.65,38.46248335]
[1641291413401,30.66479,167.74,167.65,38.46248335]
[1641291413603,2.78428658,167.73,167.7,4.17468335]
[1641291417404,2.78428658,167.73,167.72,4.17468335]
[1641291421004,5.78428658,167.73,167.72,4.17468335]
[1641291421208,5.78428658,167.73,167.68,12.62428216]
[1641291421405,5.78428658,167.73,167.72,1.42381373]
[1641291422010,5.78428658,167.73,167.68,12.62428216]
[1641291422210,27.66479,167.7,167.68,12.62428216]
[1641291422813,3.0,167.69,167.64,33.65549801]
[1641291423211,3.0,167.68,167.64,33.65549801]
[1641291423412,3.0,167.66,167.64,33.65549801]
[1641291423611,3.0,167.66,167.63,7.92595597]
[1641291424215,27.66479,167.65,167.63,7.92595597]
[1641291424411,27.66479,167.65,167.63,1.42381373]
[1641291426514,2.93670033,167.64,167.61,1.42381373]
[1641291427115,2.93670033,167.64,167.62,1.42381373]
[1641291428019,2.93670033,167.64,167.63,1.42381373]
[1641291429216,27.66479,167.65,167.6,37.6603]
[1641291429917,2.93694038,167.64,167.61,1.27250418]
[1641291430719,27.66479,167.65,167.6,37.6603]
[1641291431921,27.66479,167.65,167.61,7.47217828]
[1641291432121,20.93047639,167.65,167.61,7.47217828]
[1641291438831,30.66479,167.7,167.61,7.47217828]
[1641291439831,27.66479,167.7,167.61,7.47217828]
[1641291440031,2.92881623,167.69,167.61,7.47217828]
[1641291440631,2.92881623,167.69,167.61,35.13696828]
[1641291441732,2.92881623,167.69,167.62,1.27260389]
[1641291442033,2.92881623,167.69,167.62,13.68417828]
[1641291442934,2.92881623,167.69,167.63,1.27260389]
[1641291446536,2.92881623,167.71,167.63,1.27260389]
[1641291450645,2.92881623,167.71,167.62,41.12767629]
[1641291452847,2.92881623,167.71,167.62,7.47217828]
[1641291453248,3.0,167.7,167.64,12.62455314]
[1641291453848,2.92881623,167.69,167.63,12.62455314]
[1641291454548,3.0,167.68,167.63,12.62455314]
[1641291454748,5.92881623,167.69,167.63,12.62455314]
[1641291454948,30.59360623,167.69,167.63,12.62455314]
[1641291455849,2.92881623,167.68,167.64,12.62455314]
[1641291457251,27.66479,167.69,167.64,12.62455314]
[1641291457850,27.66479,167.69,167.65,12.62455314]
[1641291460255,27.66479,167.69,167.67,12.62455314]
[1641291461861,27.66479,167.69,167.66,12.62455314]
[1641291462560,27.66479,167.69,167.67,12.62455314]
[1641291463862,27.66479,167.69,167.65,1.27260389]
[1641291464161,12.62455314,167.72,167.65,1.27260389]
[1641291464361,12.62455314,167.72,167.65,20.11565807]
[1641291465063,15.55259314,167.72,167.65,20.11565807]
[1641291465663,2.92804,167.72,167.65,20.11565807]
[1641291465862,27.66479,167.7,167.65,20.11565807]
[1641291467465,27.66479,167.7,167.67,12.62455314]
[1641291469369,27.66479,167.72,167.67,12.62455314]
[1641291470468,27.66479,167.72,167.69,12.62455314]
[1641291471269,27.66479,167.72,167.69,13.89715703]
[1641291471970,27.66479,167.72,167.69,1.27260389]
[1641291473671,27.66479,167.72,167.69,13.89715703]
[1641291473871,0.08,167.75,167.69,13.89715703]
[1641291474274,0.08,167.75,167.7,51.52205314]
[1641291475574,0.08,167.75,167.72,12.62455314]
[1641291476573,0.08,167.75,167.72,17.22255314]
[1641291477078,0.08,167.75,167.73,1.27260389]
[1641291479477,12.62455314,167.79,167.73,1.27260389]
[1641291479883,12.62455314,167.79,167.74,2.99989999]
[1641291480081,12.62455314,167.79,167.73,4.27250388]
[1641291480280,12.62455314,167.79,167.76,27.66479]
[1641291480480,33.65549801,167.82,167.76,32.70679]
[1641291480882,12.61716394,167.83,167.76,45.33134314]
[1641291481683,30.42778567,167.85,167.76,32.70679]
[1641291481883,2.76299567,167.84,167.82,4.20515101]
[1641291483085,2.76299567,167.83,167.81,4.20515101]
[1641291484487,2.76299567,167.84,167.81,4.20515101]
[1641291486390,2.76299567,167.84,167.82,4.20515101]
[1641291486792,2.76299567,167.84,167.83,4.20515101]
[1641291488195,5.76299567,167.84,167.83,4.20515101]
[1641291488394,5.76299567,167.84,167.81,4.20515101]
[1641291488799,3.0,167.83,167.81,4.20515101]
[1641291489192,2.76299567,167.83,167.81,4.20515101]
[1641291489393,5.76299567,167.83,167.81,4.20515101]
[1641291489594,3.0,167.82,167.81,4.20515101]
[1641291490096,5.76299567,167.82,167.8,4.20515101]
[1641291490395,33.42778567,167.82,167.8,4.20515101]
[1641291490594,30.42778567,167.82,167.8,4.20515101]
[1641291490796,2.76299567,167.81,167.8,4.20515101]
[1641291492096,27.66479,167.82,167.76,8.29050673]
[1641291493301,3.0,167.8,167.76,8.29050673]
[1641291493498,8.436,167.8,167.76,8.29050673]
[1641291494299,2.62599165,167.79,167.71,48.03120673]
[1641291494502,27.66479,167.78,167.71,48.03120673]
[1641291495302,27.66479,167.78,167.72,8.29050673]
[1641291495502,27.66479,167.78,167.72,14.71650673]
[1641291496101,20.93432539,167.78,167.73,1.27260389]
[1641291496501,53.53819,167.82,167.73,1.27260389]
[1641291496703,53.53819,167.82,167.72,34.9281019]
[1641291497501,50.53819,167.82,167.72,34.9281019]
[1641291497700,53.53819,167.82,167.72,34.9281019]
[1641291497902,4.20658674,167.79,167.72,8.29050673]
[1641291500102,4.20658674,167.79,167.73,2.99989999]
[1641291500302,4.20658674,167.79,167.73,7.50789999]
[1641291500504,4.20658674,167.79,167.74,27.66479]
[1641291500906,4.20658674,167.82,167.74,28.93739389]
[1641291501107,4.20658674,167.82,167.75,71.99629801]
[1641291502206,4.20658674,167.83,167.76,52.99595597]
[1641291502706,4.20658674,167.83,167.76,41.94600474]
[1641291502907,4.20658674,167.82,167.76,8.29050673]
[1641291505906,4.20658674,167.83,167.76,8.29050673]
[1641291506606,4.20658674,167.82,167.76,8.29050673]
[1641291507411,4.20658674,167.81,167.76,8.29050673]
[1641291508015,4.20658674,167.82,167.76,8.29050673]
[1641291508618,4.20658674,167.82,167.76,11.29040672]
[1641291508818,4.20658674,167.8,167.76,11.29040672]
[1641291509015,4.20658674,167.8,167.76,8.29050673]
[1641291509717,4.20658674,167.82,167.77,1.27260389]
[1641291510619,4.20658674,167.8,167.76,8.29050673]
[1641291511021,4.20658674,167.8,167.77,12.6180795]
[1641291511829,4.20658674,167.81,167.77,12.6180795]
[1641291512426,4.20658674,167.8,167.76,20.90858623]
[1641291515929,4.20658674,167.82,167.78,12.6180795]
[1641291518131,4.20658674,167.81,167.78,12.6180795]
[1641291523036,4.20658674,167.82,167.78,12.6180795]
[1641291523438,4.20658674,167.8,167.77,12.6180795]
[1641291524941,4.20658674,167.8,167.76,20.90858623]
[1641291528644,4.20658674,167.81,167.77,12.6180795]
[1641291530747,4.20658674,167.82,167.78,12.6180795]
[1641291530947,4.20658674,167.82,167.78,17.2510795]
[1641291531347,4.20658674,167.82,167.79,1.27260389]
[1641291533251,4.20658674,167.82,167.79,13.89068339]
[1641291535653,4.20658674,167.82,167.79,1.27260389]
[1641291536353,4.20658674,167.83,167.81,4.19990561]
[1641291538956,2.68629905,167.83,167.81,4.19990561]
[1641291542560,27.66479,167.84,167.8,1.27260389]
[1641291542759,4.20540115,167.83,167.8,1.27260389]
[1641291545362,4.20540115,167.83,167.8,20.74719908]
[1641291546166,4.20540115,167.83,167.8,23.74709907]
[1641291546362,27.66479,167.84,167.8,23.74709907]
[1641291546564,12.6180795,167.87,167.81,2.99989999]
[1641291546965,12.6180795,167.9,167.83,12.6180795]
[1641291547164,12.6180795,167.9,167.85,2.99989999]
[1641291547464,12.6180795,167.9,167.84,42.658]
[1641291547664,12.6180795,167.91,167.86,1.27260389]
[1641291548865,12.6180795,167.91,167.85,31.93729388]
[1641291549069,12.6180795,167.91,167.87,2.99989999]
[1641291549368,9.8607524,167.94,167.87,4.828]
[1641291549566,9.8607524,167.95,167.88,1.27260389]
[1641291550166,9.8607524,167.95,167.9,27.66479]
[1641291550967,15.43030486,167.98,167.88,42.97620389]
[1641291551168,5.386,167.95,167.88,42.97620389]
[1641291551968,2.56955246,167.94,167.89,1.27260389]
[1641291557072,5.386,167.95,167.89,1.27260389]
[1641291557273,9.55508529,167.96,167.89,1.27260389]
[1641291557973,12.08726482,167.96,167.89,1.27260389]